fUSD/lending_fUSD_20240611
["ID","MTS","AMOUNT","RATE_DAILY","PERIOD"]
[329057777,1718074248817,-291.451,0.00028102,2]
[329057778,1718074248827,-1070.867,0.00028102,2]
[329057779,1718074248838,-154.458,0.00028102,2]
[329057780,1718074248848,-155.03558741,0.00028117,2]
[329057781,1718074248859,-1152.3051,0.00028267,2]
[329057782,1718074248869,-1241.20701041,0.00028368,2]
[329057783,1718074248879,-685.37,0.00028376,2]
[329057784,1718074248891,-157.02578518,0.00028403,2]
[329057785,1718074248901,-324.5,0.00028414,2]
[329057786,1718074248911,-812.313062,0.00028442,2]
[329057787,1718074248922,-373.290067,0.00028442,2]
[329057788,1718074248931,-1414.842981,0.00028442,2]
[329057789,1718074248944,-1408.983958,0.00028442,2]
[329057790,1718074248953,-3288.98410719,0.00028445,2]
[329057791,1718074248962,-152.90124323,0.00028482,2]
[329057792,1718074248972,-150.38,0.00028539,2]
[329057793,1718074248981,-152.0,0.00028566,3]
[329057794,1718074248991,-101426.26971812,0.000286,2]
[329057795,1718074249004,-152.90124323,0.00028659,2]
[329057796,1718074249015,-155.03558741,0.00028673,2]
[329057797,1718074249028,-198784.79461927,0.0002868,2]
[329057798,1718074249038,-50876.7511,0.000287,2]
[329057799,1718074249048,-149089.2773,0.000287,2]
[329057800,1718074249057,-500.0,0.000287,2]
[329057801,1718074249067,-157.02578518,0.00028719,2]
[329057802,1718074249076,-152.90124323,0.00028726,2]
[329057803,1718074249086,-157.02578518,0.0002876,2]
[329057804,1718074249096,-152.90124323,0.00028762,2]
[329057805,1718074249109,-812.313062,0.00028789,2]
[329057806,1718074249120,-373.290067,0.00028789,2]
[329057807,1718074249132,-1414.842981,0.00028789,2]
[329057808,1718074249143,-1408.983958,0.00028789,2]
[329057809,1718074249154,-152.90124323,0.00028794,2]
[329057810,1718074249164,-2000.0,0.00028799,30]
[329057811,1718074249175,-158.18866239,0.00028826,2]
[329057812,1718074249186,-2683.0,0.000289,3]
[329057813,1718074249195,-622.71966773,0.0002893,7]
[329057814,1718074249205,-23484.89875067,0.00029,2]
[329057815,1718074249215,-56141.24582405,0.00029,2]
[329057816,1718074249224,-151.0,0.00029,7]
[329057817,1718074249234,-151.0,0.00029,7]
[329057818,1718074249244,-151.0,0.00029,7]
[329057819,1718074249254,-151.0,0.00029,7]
[329057820,1718074249265,-151.0,0.00029,7]
[329057821,1718074249275,-151.0,0.00029,7]
[329057822,1718074249285,-151.0,0.00029,7]
[329057823,1718074249296,-20000.0,0.00029,14]
[329057824,1718074249305,-151.0,0.00029,7]
[329057825,1718074249315,-151.0,0.00029,7]
[329057826,1718074249325,-151.0,0.00029,7]
[329057827,1718074249334,-151.0,0.00029,7]
[329057828,1718074249344,-151.0,0.00029,7]
[329057829,1718074249354,-151.0,0.00029,7]
[329057830,1718074249364,-1350.0,0.00029,2]
[329057831,1718074249374,-151.0,0.00029,7]
[329057832,1718074249385,-151.0,0.00029,7]
[329057833,1718074249395,-151.0,0.00029,7]
[329057834,1718074249404,-151.0,0.00029,7]
[329057835,1718074249414,-151.0,0.00029,7]
[329057836,1718074249424,-314.020678,0.00029,7]
[329057837,1718074249434,-314.020678,0.00029,7]
[329057838,1718074249444,-651.304951,0.00029,7]
[329057839,1718074249454,-651.304951,0.00029,7]
[329057840,1718074249464,-348.823417,0.00029,7]
[329057841,1718074249474,-151.0,0.00029,7]
[329057842,1718074249483,-348.823417,0.00029,7]
[329057843,1718074249494,-172.827932,0.00029,7]
[329057844,1718074249504,-172.827932,0.00029,7]
[329057845,1718074249516,-286.80193,0.00029,7]
[329057846,1718074249526,-286.80193,0.00029,7]
[329057847,1718074249537,-151.0,0.00029,7]
[329057848,1718074249548,-151.0,0.00029,7]
[329057849,1718074249558,-151.0,0.00029,7]
[329057850,1718074249570,-151.0,0.00029,7]
[329057851,1718074249580,-151.0,0.00029,7]
[329057852,1718074249591,-151.0,0.00029,7]
[329057853,1718074249601,-151.0,0.00029,7]
[329057854,1718074249612,-346.583618,0.00029,7]
[329057855,1718074249621,-151.0,0.00029,7]
[329057856,1718074249632,-346.583618,0.00029,7]
[329057857,1718074249641,-151.0,0.00029,7]
[329057858,1718074249651,-151.0,0.00029,7]
[329057859,1718074249662,-151.0,0.00029,7]
[329057860,1718074249673,-205.380461,0.00029,7]
[329057861,1718074249686,-151.0,0.00029,7]
[329057862,1718074249695,-205.380461,0.00029,7]
[329057863,1718074249705,-437.310271,0.00029,7]
[329057864,1718074249715,-437.310271,0.00029,7]
[329057865,1718074249953,-151.0,0.00029,7]
[329057866,1718074249968,-151.0,0.00029,7]
[329057867,1718074249978,-151.0,0.00029,7]
[329057868,1718074249989,-151.0,0.00029,7]
[329057869,1718074250002,-151.0,0.00029,7]
[329057870,1718074250016,-151.0,0.00029,7]
[329057871,1718074250030,-151.0,0.00029,7]
[329057872,1718074250041,-151.0,0.00029,7]
[329057873,1718074250052,-151.0,0.00029,7]
[329057874,1718074250062,-151.0,0.00029,7]
[329057875,1718074250074,-151.0,0.00029,7]
[329057876,1718074250084,-151.0,0.00029,7]
[329057877,1718074250094,-151.0,0.00029,7]
[329057878,1718074250108,-151.0,0.00029,7]
[329057879,1718074250120,-151.0,0.00029,7]
[329057880,1718074250132,-205.714625,0.00029,7]
[329057881,1718074250143,-440.070033,0.00029,7]
[329057882,1718074250153,-440.070033,0.00029,7]
[329057883,1718074250163,-498.738843,0.00029,7]
[329057884,1718074250173,-151.0,0.00029,7]
[329057885,1718074250184,-151.0,0.00029,7]
[329057886,1718074250195,-498.738843,0.00029,7]
[329057887,1718074250205,-151.0,0.00029,7]
[329057888,1718074250215,-151.0,0.00029,7]
[329057889,1718074250225,-151.0,0.00029,7]
[329057890,1718074250235,-151.0,0.00029,7]
[329057891,1718074250245,-151.0,0.00029,7]
[329057892,1718074250255,-5104.716236,0.00029,7]
[329057893,1718074250265,-151.0,0.00029,7]
[329057894,1718074250275,-5104.716236,0.00029,7]
[329057895,1718074250285,-151.0,0.00029,7]
[329057896,1718074250295,-151.0,0.00029,7]
[329057897,1718074250305,-151.0,0.00029,7]
[329057898,1718074250315,-645.215007,0.00029,7]
[329057899,1718074250325,-645.215007,0.00029,7]
[329057900,1718074250335,-151.0,0.00029,7]
[329057901,1718074250344,-151.0,0.00029,7]
[329057902,1718074250354,-151.0,0.00029,7]
[329057903,1718074250365,-151.0,0.00029,7]
[329057904,1718074250376,-151.0,0.00029,7]
[329057905,1718074250386,-151.0,0.00029,7]
[329057906,1718074250396,-151.0,0.00029,7]
[329057907,1718074250406,-158.55,0.00029,7]
[329057908,1718074250416,-693.579031,0.00029,7]
[329057909,1718074250426,-158.55,0.00029,7]
[329057910,1718074250437,-151.0,0.00029,7]
[329057911,1718074250450,-693.579031,0.00029,7]
[329057912,1718074250461,-151.0,0.00029,7]
[329057913,1718074250471,-151.416325,0.00029,7]
[329057914,1718074250481,-151.0,0.00029,7]
[329057915,1718074250491,-151.0,0.00029,7]
[329057916,1718074250501,-151.0,0.00029,7]
[329057917,1718074250511,-151.0,0.00029,7]
[329057918,1718074250522,-151.0,0.00029,7]
[329057919,1718074250532,-151.0,0.00029,7]
[329057920,1718074250542,-374.760462,0.00029,7]
[329057921,1718074250553,-151.0,0.00029,7]
[329057922,1718074250563,-374.760462,0.00029,7]
[329057923,1718074250573,-151.612017,0.00029,7]
[329057924,1718074250584,-1061.531264,0.00029,7]
[329057925,1718074250595,-1061.531264,0.00029,7]
[329057926,1718074250605,-368.7934,0.00029,7]
[329057927,1718074250615,-368.7934,0.00029,7]
[329057928,1718074250625,-151.0,0.00029,7]
[329057929,1718074250635,-151.0,0.00029,7]
[329057930,1718074250645,-151.0,0.00029,7]
[329057931,1718074250655,-151.0,0.00029,7]
[329057932,1718074250665,-3716.94663,0.00029,7]
[329057933,1718074250676,-3716.94663,0.00029,7]
[329057934,1718074250687,-151.0,0.00029,7]
[329057935,1718074250697,-364.421659,0.00029,7]
[329057936,1718074250707,-279.509723,0.00029,7]
[329057937,1718074250717,-151.0,0.00029,7]
[329057938,1718074250727,-279.509723,0.00029,7]
[329057939,1718074250737,-364.421659,0.00029,7]
[329057940,1718074250748,-151.0,0.00029,7]
[329057941,1718074250758,-151.0,0.00029,7]
[329057942,1718074250768,-151.0,0.00029,7]
[329057943,1718074250778,-275.381793,0.00029,7]
[329057944,1718074250788,-157.02578518,0.00029014,2]
[329057945,1718074250798,-155.0442262,0.00029049,2]
[329057946,1718074250809,-2000.0,0.00029073,30]
[329057947,1718074250819,-641.0,0.000291,2]
[329057948,1718074250830,-157.02578518,0.00029126,2]
[329057949,1718074250840,-94970.13986067,0.0002913,10]
[329057950,1718074250851,-812.313062,0.00029136,2]
[329057951,1718074250861,-373.290067,0.00029136,2]
[329057952,1718074250871,-1414.842981,0.00029136,2]
[329057953,1718074250881,-1408.983958,0.00029136,2]
[329057954,1718074250891,-152.90124323,0.00029189,2]
[329057955,1718074250901,-4704.13797673,0.000292,5]
[329057956,1718074250911,-157.02578518,0.00029202,2]
[329057957,1718074250921,-158.18866239,0.00029259,2]
[329057958,1718074250931,-151.0,0.00029261,7]
[329057959,1718074250945,-215.7603237,0.00029264,2]
[329057960,1718074250955,-1039.198221,0.00029266,2]
[329057961,1718074250965,-158.18866239,0.00029276,2]
[329057962,1718074250975,-1581.87079265,0.00029279,2]
[329057963,1718074250985,-150.0,0.00029297,2]
[329057964,1718074250995,-1690.0,0.000293,2]
[329057965,1718074251008,-2000.0,0.00029347,30]
[329057966,1718074251019,-158.18866239,0.00029385,2]
[329057967,1718074251033,-641.0,0.000294,2]
[329057968,1718074251043,-998.9,0.000294,2]
[329057969,1718074251053,-597.988003,0.000294,2]
[329057970,1718074251064,-155.99201808,0.0002941,2]
[329057971,1718074251074,-152.90124323,0.0002942,2]
[329057972,1718074251085,-41692.31427137,0.00029489,2]
[329057973,1718074251095,-151.0,0.00029489,7]
[329057974,1718074251105,-151.0,0.00029489,7]
[329057975,1718074251115,-151.0,0.00029489,7]
[329057976,1718074251126,-157.02578518,0.00029496,2]
[329057977,1718074251135,-226.87488696,0.000295,3]
[329057978,1718074251145,-151.0,0.00029508,7]
[329057979,1718074251155,-588.0,0.00029535,5]
[329057980,1718074251166,-5983.68439852,0.0002955,2]
[329057981,1718074251175,-351.64397,0.0002956,2]
[329057982,1718074251187,-500.0,0.000296,10]
[329057983,1718074251197,-2000.0,0.00029621,30]
[329057984,1718074251207,-150.38,0.0002968,2]
[329057985,1718074251218,-155.52498408,0.00029683,2]
[329057986,1718074251229,-500.0,0.00029692,2]
[329057987,1718074251242,-200.0,0.00029692,2]
[329057988,1718074251252,-1244.25709305,0.00029699,4]
[329057989,1718074251265,-641.0,0.000297,2]
[329057990,1718074251278,-500.0,0.000297,10]
[329057991,1718074251289,-301.09587522,0.00029749,2]
[329057992,1718074251300,-151.0,0.00029754,7]
[329057993,1718074251310,-152.43950843,0.00029763,2]
[329057994,1718074251320,-4147.80642927,0.00029763,15]
[329057995,1718074251331,-821.78355998,0.00029763,2]
[329057996,1718074251341,-1262.04972392,0.00029763,2]
[329057997,1718074251353,-152.90124323,0.00029764,2]
[329057998,1718074251365,-152.0,0.00029785,4]
[329057999,1718074251375,-1024.95463497,0.000298,2]
[329058000,1718074251385,-2500.0,0.000298,7]
[329058001,1718074251395,-1144.0,0.000298,10]
[329058002,1718074251404,-850.0,0.00029832,15]
[329058003,1718074251415,-850.0,0.00029842,15]
[329058004,1718074251425,-850.0,0.00029842,15]
[329058005,1718074251437,-197.29,0.00029852,15]
[329058006,1718074251446,-850.0,0.00029852,15]
[329058007,1718074251456,-850.0,0.00029852,15]
[329058008,1718074251466,-291.772748,0.00029853,7]
[329058009,1718074251477,-151.0,0.00029853,7]
[329058010,1718074251487,-152.249119,0.00029853,7]
[329058011,1718074251497,-151.0,0.00029853,7]
[329058012,1718074251507,-63071.91225901,0.00029858,5]
[329058013,1718074251517,-165.964439,0.00029858,7]
[329058014,1718074251527,-151.0,0.00029858,7]
[329058015,1718074251537,-151.0,0.00029858,7]
[329058016,1718074251548,-151.0,0.00029858,7]
[329058017,1718074251557,-151.0,0.00029858,7]
[329058018,1718074251567,-840.94664724,0.0002986,60]
[329058019,1718074251578,-267.00542666,0.00029861,2]
[329058020,1718074251588,-156.96833508,0.00029861,2]
[329058021,1718074251598,-155.45609756,0.00029861,2]
[329058022,1718074251608,-412.06014632,0.00029861,2]
[329058023,1718074251618,-156.53275905,0.00029861,2]
[329058024,1718074251629,-155.45994124,0.00029861,2]
[329058025,1718074251639,-159.36735444,0.00029861,2]
[329058026,1718074251649,-206.83491087,0.00029861,2]
[329058027,1718074251659,-222.93305697,0.00029861,2]
[329058028,1718074251669,-187.83054802,0.00029861,2]
[329058029,1718074251679,-1892.57378783,0.00029861,2]
[329058030,1718074251691,-305.4059242,0.00029861,2]
[329058031,1718074251701,-708.69401952,0.00029861,2]
[329058032,1718074251711,-1851.30045628,0.00029861,2]
[329058033,1718074251721,-1055.98727981,0.00029861,2]
[329058034,1718074251731,-246.72665707,0.00029861,2]
[329058035,1718074251741,-238.5441695,0.00029861,2]
[329058036,1718074251752,-9739.74289968,0.00029861,2]
[329058037,1718074251762,-1275.87816155,0.00029861,2]
[329058038,1718074251772,-155.28054181,0.00029861,2]
[329058039,1718074251782,-1604.60035557,0.00029861,2]
[329058040,1718074251793,-155.36390831,0.00029861,2]
[329058041,1718074251804,-155.9680426,0.00029861,2]
[329058042,1718074251814,-216.75981633,0.00029861,2]
[329058043,1718074251825,-210.39913373,0.00029861,2]
[329058044,1718074251835,-523.82451147,0.00029861,2]
[329058045,1718074251845,-157.09026495,0.00029861,2]
[329058046,1718074251855,-155.10571439,0.00029861,2]
[329058047,1718074251866,-156.20999783,0.00029861,2]
[329058048,1718074251876,-155.17765682,0.00029861,2]
[329058049,1718074251886,-157.38503529,0.00029861,2]
[329058050,1718074251896,-387.39702558,0.00029861,2]
[329058051,1718074251915,-2006.99717582,0.00029861,2]
[329058052,1718074251929,-168.23517528,0.00029861,2]
[329058053,1718074251942,-155.38903352,0.00029861,2]
[329058054,1718074251953,-508.26166084,0.00029861,2]
[329058055,1718074251966,-328.20180643,0.00029861,2]
[329058056,1718074251976,-155.14033037,0.00029861,2]
[329058057,1718074251987,-1227.1747201,0.00029861,2]
[329058058,1718074251999,-155.13177415,0.00029861,2]
[329058059,1718074252012,-205.86810198,0.00029861,2]
[329058060,1718074252025,-155.42487436,0.00029861,2]
[329058061,1718074252036,-215.66238223,0.00029861,2]
[329058062,1718074252047,-155.44334253,0.00029861,3]
[329058063,1718074252057,-155.30848062,0.00029861,2]
[329058064,1718074252069,-155.0,0.00029861,2]
[329058065,1718074252079,-222.66713761,0.00029861,2]
[329058066,1718074252092,-427.89557515,0.00029861,2]
[329058067,1718074252105,-155.46322452,0.00029861,2]
[329058068,1718074252116,-864.62751791,0.00029861,3]
[329058069,1718074252126,-3891.69438003,0.00029861,2]
[329058070,1718074252136,-447.82661952,0.00029861,2]
[329058071,1718074252148,-9214.69971904,0.00029861,2]
[329058072,1718074252160,-1144.72939741,0.00029861,2]
[329058073,1718074252171,-353.7370284,0.00029861,2]
[329058074,1718074252183,-16786.49195776,0.00029861,5]
[329058075,1718074252194,-347.94008399,0.00029861,2]
[329058076,1718074252204,-468.94608337,0.00029861,2]
[329058077,1718074252214,-1011.6724071,0.00029861,2]
[329058078,1718074252224,-351.51873954,0.00029861,2]
[329058079,1718074252234,-168.1727453,0.00029861,2]
[329058080,1718074252244,-17419.52559149,0.00029861,2]
[329058081,1718074252254,-156.27673153,0.00029862,2]
[329058082,1718074252265,-297.15785932,0.00029862,2]
[329058083,1718074252276,-1209.3124639,0.00029863,2]
[329058084,1718074252286,-226.89,0.00029863,4]
[329058085,1718074252296,-500.0,0.00029863,4]
[329058086,1718074252306,-500.0,0.00029863,4]
[329058087,1718074252316,-500.0,0.00029863,4]
[329058088,1718074252325,-2000.0,0.00029863,2]
[329058089,1718074252336,-200.0,0.00029863,2]
[329058090,1718074252346,-151.584588,0.00029863,7]
[329058091,1718074252355,-500.0,0.00029863,4]
[329058092,1718074252366,-513.35092578,0.00029863,4]
[329058093,1718074252376,-500.0,0.00029863,4]
[329058094,1718074252386,-605.7909548,0.00029863,4]
[329058095,1718074252396,-500.0,0.00029863,4]
[329058096,1718074252406,-500.0,0.00029863,4]
[329058097,1718074252416,-500.0,0.00029863,4]
[329058098,1718074252426,-500.0,0.00029863,4]
[329058099,1718074252438,-500.0,0.00029863,4]
[329058100,1718074252448,-505.44485814,0.00029863,4]
[329058101,1718074252458,-500.0,0.00029863,4]
[329058102,1718074252468,-500.0,0.00029863,4]
[329058103,1718074252478,-500.0,0.00029863,4]
[329058104,1718074252489,-500.0,0.00029863,4]
[329058105,1718074252498,-500.0,0.00029863,4]
[329058106,1718074252508,-500.0,0.00029863,4]
[329058107,1718074252518,-192.69,0.00029863,4]
[329058108,1718074252528,-500.0,0.00029863,4]
[329058109,1718074252538,-500.0,0.00029863,4]
[329058110,1718074252548,-500.0,0.00029863,4]
[329058111,1718074252558,-500.0,0.00029863,4]
[329058112,1718074252568,-500.0,0.00029863,4]
[329058113,1718074252578,-500.0,0.00029863,4]
[329058114,1718074252588,-500.0,0.00029863,4]
[329058115,1718074252598,-500.0,0.00029863,4]
[329058116,1718074252607,-500.0,0.00029863,4]
[329058117,1718074252617,-575.28591388,0.00029863,4]
[329058118,1718074252627,-500.0,0.00029863,4]
[329058119,1718074252637,-500.0,0.00029863,4]
[329058120,1718074252648,-500.0,0.00029863,4]
[329058121,1718074252661,-500.0,0.00029863,4]
[329058122,1718074252672,-411.01737816,0.00029863,4]
[329058123,1718074252682,-500.0,0.00029863,4]
[329058124,1718074252695,-500.0,0.00029863,4]
[329058125,1718074252705,-500.0,0.00029863,4]
[329058126,1718074252714,-500.0,0.00029863,4]
[329058127,1718074252724,-500.0,0.00029863,4]
[329058128,1718074252733,-500.0,0.00029863,4]
[329058129,1718074252743,-500.0,0.00029863,4]
[329058130,1718074252752,-307.66661076,0.00029863,4]
[329058131,1718074252763,-500.0,0.00029863,4]
[329058132,1718074252773,-453.6579845,0.00029863,4]
[329058133,1718074252784,-151.0,0.00029863,7]
[329058134,1718074252794,-151.0,0.00029863,7]
[329058135,1718074252803,-151.0,0.00029863,7]
[329058136,1718074252813,-151.0,0.00029863,7]
[329058137,1718074252823,-200.14109118,0.00029863,4]
[329058138,1718074252834,-500.0,0.00029863,4]
[329058139,1718074252844,-500.0,0.00029863,4]
[329058140,1718074252853,-500.0,0.00029863,4]
[329058141,1718074252863,-500.0,0.00029863,4]
[329058142,1718074252873,-500.0,0.00029863,4]
[329058143,1718074252883,-151.0,0.00029863,7]
[329058144,1718074252893,-151.0,0.00029863,7]
[329058145,1718074252903,-151.681691,0.00029863,7]
[329058146,1718074252913,-151.0,0.00029863,7]
[329058147,1718074252923,-151.0,0.00029863,7]
[329058148,1718074252933,-154.423604,0.00029863,7]
[329058149,1718074252946,-151.0,0.00029863,7]
[329058150,1718074252956,-151.0,0.00029863,7]
[329058151,1718074252966,-175.371095,0.00029863,7]
[329058152,1718074252976,-151.0,0.00029863,7]
[329058153,1718074252986,-151.0,0.00029863,7]
[329058154,1718074252996,-151.0,0.00029863,7]
[329058155,1718074253009,-151.0,0.00029863,7]
[329058156,1718074253020,-151.0,0.00029863,7]
[329058157,1718074253033,-151.0,0.00029863,7]
[329058158,1718074253043,-151.0,0.00029863,7]
[329058159,1718074253053,-151.0,0.00029863,7]
[329058160,1718074253064,-151.0,0.00029863,7]
[329058161,1718074253076,-151.0,0.00029863,7]
[329058162,1718074253086,-155.0,0.00029863,4]
[329058163,1718074253097,-151.0,0.00029863,7]
[329058164,1718074253108,-151.0,0.00029863,7]
[329058165,1718074253118,-151.0,0.00029863,7]
[329058166,1718074253130,-151.883746,0.00029863,7]
[329058167,1718074253141,-430.81991531,0.00029863,4]
[329058168,1718074253152,-500.0,0.00029863,4]
[329058169,1718074253163,-500.0,0.00029863,4]
[329058170,1718074253174,-500.0,0.00029863,4]
[329058171,1718074253184,-500.0,0.00029863,4]
[329058172,1718074253195,-500.0,0.00029863,4]
[329058173,1718074253204,-500.0,0.00029863,4]
[329058174,1718074253214,-500.0,0.00029863,4]
[329058175,1718074253224,-516.3676706,0.00029863,4]
[329058176,1718074253235,-500.0,0.00029863,4]
[329058177,1718074253245,-500.0,0.00029863,4]
[329058178,1718074253257,-500.0,0.00029863,4]
[329058179,1718074253269,-500.0,0.00029863,4]
[329058180,1718074253280,-500.0,0.00029863,4]
[329058181,1718074253291,-500.0,0.00029863,4]
[329058182,1718074253301,-500.0,0.00029863,4]
[329058183,1718074253311,-500.0,0.00029863,4]
[329058184,1718074253322,-297.6,0.00029863,4]
[329058185,1718074253333,-151.0,0.00029863,7]
[329058186,1718074253343,-151.0,0.00029863,7]
[329058187,1718074253354,-151.0,0.00029863,7]
[329058188,1718074253364,-151.0,0.00029863,7]
[329058189,1718074253376,-151.0,0.00029863,7]
[329058190,1718074253386,-500.0,0.00029863,4]
[329058191,1718074253397,-500.0,0.00029863,4]
[329058192,1718074253408,-500.0,0.00029863,4]
[329058193,1718074253418,-500.0,0.00029863,4]
[329058194,1718074253428,-198.35,0.00029863,4]
[329058195,1718074253440,-500.0,0.00029863,4]
[329058196,1718074253450,-500.0,0.00029863,4]
[329058197,1718074253461,-500.0,0.00029863,4]
[329058198,1718074253471,-500.0,0.00029863,4]
[329058199,1718074253481,-648.31264362,0.00029863,4]
[329058200,1718074253491,-500.0,0.00029863,4]
[329058201,1718074253501,-500.0,0.00029863,4]
[329058202,1718074253511,-500.0,0.00029863,4]
[329058203,1718074253521,-500.0,0.00029863,4]
[329058204,1718074253531,-500.0,0.00029863,4]
[329058205,1718074253541,-500.0,0.00029863,4]
[329058206,1718074253551,-500.0,0.00029863,4]
[329058207,1718074253561,-500.0,0.00029863,4]
[329058208,1718074253571,-500.0,0.00029863,4]
[329058209,1718074253581,-257.33323028,0.00029863,4]
[329058210,1718074253591,-500.0,0.00029863,4]
[329058211,1718074253601,-500.0,0.00029863,4]
[329058212,1718074253611,-500.0,0.00029863,4]
[329058213,1718074253621,-500.0,0.00029863,4]
[329058214,1718074253632,-500.0,0.00029863,4]
[329058215,1718074253642,-500.0,0.00029863,4]
[329058216,1718074253652,-324.24752192,0.00029863,4]
[329058217,1718074253715,-175.75247808,0.00029863,4]
[329058218,1718074253725,-500.0,0.00029863,4]
[329058219,1718074253735,-500.0,0.00029863,4]
[329058220,1718074253745,-151.0,0.00029863,7]
[329058221,1718074253755,-151.0,0.00029863,7]
[329058222,1718074253765,-151.0,0.00029863,7]
[329058223,1718074253779,-151.0,0.00029863,7]
[329058224,1718074253789,-151.0,0.00029863,7]
[329058225,1718074253799,-500.0,0.00029863,4]
[329058226,1718074253810,-500.0,0.00029863,4]
[329058227,1718074253820,-500.0,0.00029863,4]
[329058228,1718074253830,-500.0,0.00029863,4]
[329058229,1718074253840,-500.0,0.00029863,4]
[329058230,1718074253850,-500.0,0.00029863,4]
[329058231,1718074253860,-500.0,0.00029863,4]
[329058232,1718074253869,-500.0,0.00029863,4]
[329058233,1718074253879,-500.0,0.00029863,4]
[329058234,1718074253889,-500.0,0.00029863,4]
[329058235,1718074253899,-500.0,0.00029863,4]
[329058236,1718074253908,-500.0,0.00029863,4]
[329058237,1718074253918,-500.0,0.00029863,4]
[329058238,1718074253928,-500.0,0.00029863,4]
[329058239,1718074253939,-500.0,0.00029863,4]
[329058240,1718074253950,-500.0,0.00029863,4]
[329058241,1718074253960,-500.0,0.00029863,4]
[329058242,1718074253970,-423.88,0.00029863,4]
[329058243,1718074253980,-500.0,0.00029863,4]
[329058244,1718074253990,-500.0,0.00029863,4]
[329058245,1718074254001,-500.0,0.00029863,4]
[329058246,1718074254013,-500.0,0.00029863,4]
[329058247,1718074254025,-602.5,0.00029863,4]
[329058248,1718074254035,-423.36699252,0.00029863,4]
[329058249,1718074254045,-500.0,0.00029863,4]
[329058250,1718074254055,-500.0,0.00029863,4]
[329058251,1718074254066,-527.93851754,0.00029863,4]
[329058252,1718074254076,-151.0,0.00029863,7]
[329058253,1718074254086,-153.001103,0.00029863,7]
[329058254,1718074254096,-500.0,0.00029863,4]
[329058255,1718074254108,-500.0,0.00029863,4]
[329058256,1718074254119,-500.0,0.00029863,4]
[329058257,1718074254128,-500.0,0.00029863,4]
[329058258,1718074254138,-581.50943876,0.00029863,4]
[329058259,1718074254148,-550.1,0.00029863,4]
[329058260,1718074254158,-418.18682222,0.00029863,4]
[329058261,1718074254169,-506.80041427,0.00029863,4]
[329058262,1718074254179,-500.0,0.00029863,4]
[329058263,1718074254191,-500.0,0.00029863,4]
[329058264,1718074254201,-500.0,0.00029863,4]
[329058265,1718074254212,-500.0,0.00029863,4]
[329058266,1718074254222,-500.0,0.00029863,4]
[329058267,1718074254232,-500.0,0.00029863,4]
[329058268,1718074254242,-151.0,0.00029863,7]
[329058269,1718074254253,-532.08854754,0.00029863,4]
[329058270,1718074254263,-151.0,0.00029863,7]
[329058271,1718074254274,-151.0,0.00029863,7]
[329058272,1718074254284,-151.0,0.00029863,7]
[329058273,1718074254295,-151.0,0.00029863,7]
[329058274,1718074254306,-151.0,0.00029863,7]
[329058275,1718074254316,-500.0,0.00029863,4]
[329058276,1718074254328,-500.0,0.00029863,4]